[Event "*** Titled Tuesday 3|2 Blitz"]
[Site "Chess.com"]
[Date "2014.12.30"]
[Round "8"]
[White "KestutisLabeckas"]
[Black "Sebastian"]
[Result "0-1"]
[WhiteElo "2377"]
[BlackElo "2538"]
[TimeControl "180+2"]
[EndTime "12:42:32 PST"]
[Termination "Sebastian won by resignation"]

1. d4 {[%clk 0:03:00]} 1... Nf6 {[%clk 0:02:59.3]} 2. Bg5 {[%clk 0:03:01]} 2...
Ne4 {[%clk 0:02:59.7]} 3. Bf4 {[%clk 0:03:02.3]} 3... d5 {[%clk 0:03:00.8]} 4.
e3 {[%clk 0:03:03.4]} 4... c5 {[%clk 0:02:51.1]} 5. Bd3 {[%clk 0:03:03.6]} 5...
Nf6 {[%clk 0:02:52.1]} 6. c3 {[%clk 0:03:02.7]} 6... Nc6 {[%clk 0:02:52.7]} 7.
Nd2 {[%clk 0:03:03.7]} 7... Bg4 {[%clk 0:02:50.7]} 8. Ngf3 {[%clk 0:03:03.4]}
8... e6 {[%clk 0:02:51.6]} 9. O-O {[%clk 0:03:01.9]} 9... a6 {[%clk 0:02:52.5]}
10. h3 {[%clk 0:03:01.3]} 10... Bh5 {[%clk 0:02:53.4]} 11. Qb1 {[%clk
0:02:58.6]} 11... Be7 {[%clk 0:02:53.3]} 12. Ne5 {[%clk 0:02:59.4]} 12... Nxe5
{[%clk 0:02:51.1]} 13. Bxe5 {[%clk 0:02:58.6]} 13... Bg6 {[%clk 0:02:50.4]} 14.
Bxg6 {[%clk 0:02:57.9]} 14... hxg6 {[%clk 0:02:51.1]} 15. b4 {[%clk 0:02:55.6]}
15... cxb4 {[%clk 0:02:44.1]} 16. cxb4 {[%clk 0:02:56.5]} 16... O-O {[%clk
0:02:41.1]} 17. Rc1 {[%clk 0:02:55.9]} 17... Qb6 {[%clk 0:02:35.1]} 18. a3
{[%clk 0:02:55.2]} 18... Rfc8 {[%clk 0:02:35.3]} 19. Qb2 {[%clk 0:02:52.1]}
19... Nd7 {[%clk 0:02:36.4]} 20. Bg3 {[%clk 0:02:51.8]} 20... a5 {[%clk
0:02:28.2]} 21. b5 {[%clk 0:02:44.4]} 21... a4 {[%clk 0:02:29.4]} 22. Nf3 {[%clk
0:02:33.4]} 22... Qd8 {[%clk 0:02:15.4]} 23. Rxc8 {[%clk 0:02:02.3]} 23... Rxc8
{[%clk 0:02:16]} 24. Ne5 {[%clk 0:01:55.3]} 24... Nxe5 {[%clk 0:02:11]} 25. Bxe5
{[%clk 0:01:57.2]} 25... f6 {[%clk 0:02:12.1]} 26. Bg3 {[%clk 0:01:57.7]} 26...
Qa5 {[%clk 0:02:12.9]} 27. Kh2 {[%clk 0:01:37.5]} 27... Qc3 {[%clk 0:02:10.8]}
28. Qb1 {[%clk 0:01:23.4]} 28... Kf7 {[%clk 0:02:11]} 29. b6 {[%clk 0:01:20.3]}
29... Rc4 {[%clk 0:01:51.2]} 30. Qa2 {[%clk 0:00:57.4]} 30... Qc2 {[%clk
0:01:49.6]} 31. Qb1 {[%clk 0:00:27.9]} 31... Qxb1 {[%clk 0:01:49.5]} 32. Rxb1
{[%clk 0:00:29.8]} 32... Bxa3 {[%clk 0:01:43.9]} 0-1

[Event "*** Titled Tuesday 3|2 Blitz"]
[Site "Chess.com"]
[Date "2014.12.30"]
[Round "8"]
[White "crisfoisor"]
[Black "jlandaw"]
[Result "0-1"]
[WhiteElo "2126"]
[BlackElo "2324"]
[TimeControl "180+2"]
[EndTime "12:43:05 PST"]
[Termination "jlandaw won by checkmate"]

1. c4 {[%clk 0:03:00]} 1... e5 {[%clk 0:02:58.3]} 2. g3 {[%clk 0:03:00.9]} 2...
Nc6 {[%clk 0:02:58.8]} 3. Bg2 {[%clk 0:03:02.3]} 3... g6 {[%clk 0:03:00.5]} 4.
Nc3 {[%clk 0:03:02.8]} 4... Bg7 {[%clk 0:03:02]} 5. e4 {[%clk 0:03:03.1]} 5...
d6 {[%clk 0:03:03]} 6. Nge2 {[%clk 0:03:04.4]} 6... f5 {[%clk 0:03:04.3]} 7. d3
{[%clk 0:03:04.8]} 7... Nf6 {[%clk 0:03:05.8]} 8. O-O {[%clk 0:03:05.2]} 8...
O-O {[%clk 0:03:06.5]} 9. Rb1 {[%clk 0:03:04]} 9... Nh5 {[%clk 0:03:03.8]} 10.
Nd5 {[%clk 0:03:02.6]} 10... Be6 {[%clk 0:02:55.5]} 11. b4 {[%clk 0:03:00]}
11... a5 {[%clk 0:02:36.7]} 12. b5 {[%clk 0:03:00.3]} 12... Nb4 {[%clk
0:02:38.2]} 13. Nxb4 {[%clk 0:02:44.7]} 13... axb4 {[%clk 0:02:40.1]} 14. exf5
{[%clk 0:02:44.9]} 14... gxf5 {[%clk 0:02:40]} 15. Qb3 {[%clk 0:02:34.9]} 15...
f4 {[%clk 0:02:38.5]} 16. Bxb7 {[%clk 0:02:33.4]} 16... f3 {[%clk 0:02:30.2]}
17. Bxa8 {[%clk 0:02:13.1]} 17... fxe2 {[%clk 0:02:25.1]} 18. Bg2 {[%clk
0:02:04.3]} 18... exf1=Q+ {[%clk 0:02:24.3]} 19. Bxf1 {[%clk 0:02:05.3]} 19...
Nf6 {[%clk 0:01:45.3]} 20. h3 {[%clk 0:01:50.3]} 20... Qc8 {[%clk 0:01:13.1]}
21. Kh2 {[%clk 0:01:50.1]} 21... e4 {[%clk 0:01:14.1]} 22. Be3 {[%clk
0:01:46.5]} 22... exd3 {[%clk 0:01:12.5]} 23. Qxb4 {[%clk 0:01:43.1]} 23... Ne4
{[%clk 0:01:10.7]} 24. c5 {[%clk 0:00:55.8]} 24... Nxf2 {[%clk 0:00:53.3]} 25.
cxd6 {[%clk 0:00:56.7]} 25... Bxh3 {[%clk 0:00:50.3]} 26. Qc4+ {[%clk
0:00:48.2]} 26... Be6 {[%clk 0:00:47.6]} 27. Qxc7 {[%clk 0:00:48.4]} 27... Ng4+
{[%clk 0:00:46.5]} 28. Kg1 {[%clk 0:00:45.9]} 28... Nxe3 {[%clk 0:00:46.6]} 29.
b6 {[%clk 0:00:44.6]} 29... Nxf1 {[%clk 0:00:39.1]} 30. b7 {[%clk 0:00:41.5]}
30... Bd4+ {[%clk 0:00:39.5]} 31. Kg2 {[%clk 0:00:38.4]} 31... Bd5# {[%clk
0:00:40]} 0-1

[Event "*** Titled Tuesday 3|2 Blitz"]
[Site "Chess.com"]
[Date "2014.12.30"]
[Round "8"]
[White "oggy1984"]
[Black "playerzr"]
[Result "1-0"]
[WhiteElo "2142"]
[BlackElo "1888"]
[TimeControl "180+2"]
[EndTime "12:43:19 PST"]
[Termination "oggy1984 won on time"]

1. e4 {[%clk 0:03:00]} 1... c5 {[%clk 0:02:37]} 2. Nf3 {[%clk 0:03:00.1]} 2...
Nc6 {[%clk 0:02:37.5]} 3. d4 {[%clk 0:03:00.6]} 3... cxd4 {[%clk 0:02:38.2]} 4.
Nxd4 {[%clk 0:03:02.5]} 4... e5 {[%clk 0:02:39]} 5. Nb5 {[%clk 0:03:02.8]} 5...
d6 {[%clk 0:02:40.1]} 6. N1c3 {[%clk 0:03:02.1]} 6... a6 {[%clk 0:02:40]} 7. Na3
{[%clk 0:03:03.2]} 7... Be6 {[%clk 0:02:37.3]} 8. Nc4 {[%clk 0:03:02.2]} 8...
Be7 {[%clk 0:02:34.4]} 9. Ne3 {[%clk 0:02:59]} 9... Bg5 {[%clk 0:02:26.1]} 10.
Ned5 {[%clk 0:02:57.7]} 10... Bxc1 {[%clk 0:02:24.8]} 11. Rxc1 {[%clk
0:02:58.1]} 11... Nge7 {[%clk 0:02:21]} 12. Be2 {[%clk 0:02:57.6]} 12... O-O
{[%clk 0:02:18.2]} 13. O-O {[%clk 0:02:58.5]} 13... Nd4 {[%clk 0:02:16.6]} 14.
Kh1 {[%clk 0:02:55.8]} 14... Nxd5 {[%clk 0:02:12.9]} 15. exd5 {[%clk 0:02:52.2]}
15... Bf5 {[%clk 0:01:57.5]} 16. f4 {[%clk 0:02:52.7]} 16... Nxe2 {[%clk
0:01:48.9]} 17. Qxe2 {[%clk 0:02:52.7]} 17... Re8 {[%clk 0:01:35.7]} 18. fxe5
{[%clk 0:02:53.2]} 18... Rxe5 {[%clk 0:01:35.4]} 19. Qd2 {[%clk 0:02:52.6]}
19... Rc8 {[%clk 0:01:29.2]} 20. Rf4 {[%clk 0:02:49.8]} 20... h6 {[%clk
0:00:59.4]} 21. Rcf1 {[%clk 0:02:50.5]} 21... Bg6 {[%clk 0:00:58.5]} 22. a4
{[%clk 0:02:47.1]} 22... Rc5 {[%clk 0:00:41.8]} 23. Rb4 {[%clk 0:02:45.3]} 23...
Qd7 {[%clk 0:00:38.5]} 24. h3 {[%clk 0:02:40.9]} 24... b5 {[%clk 0:00:39]} 25.
axb5 {[%clk 0:02:41.1]} 25... axb5 {[%clk 0:00:38.7]} 26. Ra1 {[%clk 0:02:38.6]}
26... Kh7 {[%clk 0:00:30.5]} 27. Qf2 {[%clk 0:02:35.3]} 27... Rc4 {[%clk
0:00:18.3]} 28. Ra7 {[%clk 0:02:21.7]} 28... Qxa7 {[%clk 0:00:14.8]} 29. Qxa7
{[%clk 0:02:21.4]} 29... Rxb4 {[%clk 0:00:15.6]} 30. Qa3 {[%clk 0:02:11.7]}
30... Rh4 {[%clk 0:00:11]} 31. Qxd6 {[%clk 0:02:09.6]} 31... Re1+ {[%clk
0:00:10.7]} 32. Kh2 {[%clk 0:02:11]} 32... b4 {[%clk 0:00:08.9]} 33. Nb5 {[%clk
0:02:02.5]} 33... Re2 {[%clk 0:00:05.6]} 34. Qg3 {[%clk 0:01:57.5]} 34... Be4
{[%clk 0:00:03.9]} 35. d6 {[%clk 0:01:40.3]} 35... Rxg2+ {[%clk 0:00:03.6]} 36.
Qxg2 {[%clk 0:01:41.5]} 36... Bxg2 {[%clk 0:00:04.1]} 37. d7 {[%clk 0:01:36.6]}
1-0

[Event "*** Titled Tuesday 3|2 Blitz"]
[Site "Chess.com"]
[Date "2014.12.30"]
[Round "8"]
[White "FlySooHigh"]
[Black "Philofive"]
[Result "1-0"]
[WhiteElo "2368"]
[BlackElo "2276"]
[TimeControl "180+2"]
[EndTime "12:43:39 PST"]
[Termination "FlySooHigh won by resignation"]

1. e4 {[%clk 0:03:00]} 1... e6 {[%clk 0:01:19.2]} 2. d4 {[%clk 0:02:59.6]} 2...
d5 {[%clk 0:01:19]} 3. e5 {[%clk 0:03:00.5]} 3... c5 {[%clk 0:01:19.1]} 4. c3
{[%clk 0:03:01.4]} 4... Nc6 {[%clk 0:01:20.7]} 5. Nf3 {[%clk 0:03:01.8]} 5...
Qb6 {[%clk 0:01:22]} 6. a3 {[%clk 0:03:02.6]} 6... Nh6 {[%clk 0:01:20.9]} 7. b4
{[%clk 0:03:02.4]} 7... cxd4 {[%clk 0:01:21.9]} 8. cxd4 {[%clk 0:03:04.3]} 8...
Nf5 {[%clk 0:01:22.8]} 9. Be3 {[%clk 0:03:05.9]} 9... f6 {[%clk 0:01:20.9]} 10.
exf6 {[%clk 0:03:03.7]} 10... gxf6 {[%clk 0:01:21.5]} 11. Nc3 {[%clk 0:03:05]}
11... Nxe3 {[%clk 0:01:03.3]} 12. fxe3 {[%clk 0:03:06.9]} 12... Bh6 {[%clk
0:01:04.9]} 13. Qd2 {[%clk 0:02:54.6]} 13... Bd7 {[%clk 0:01:04.3]} 14. Bd3
{[%clk 0:02:46.6]} 14... Ne7 {[%clk 0:01:04.7]} 15. O-O {[%clk 0:02:44]} 15...
O-O-O {[%clk 0:01:04.9]} 16. Rab1 {[%clk 0:02:23.2]} 16... Kb8 {[%clk
0:01:01.7]} 17. Rfe1 {[%clk 0:02:18.9]} 17... Qd6 {[%clk 0:00:58.8]} 18. Nb5
{[%clk 0:01:49.5]} 18... Bxb5 {[%clk 0:00:58.9]} 19. Bxb5 {[%clk 0:01:51.4]}
19... e5 {[%clk 0:00:50.9]} 20. Qf2 {[%clk 0:01:50.4]} 20... Rhg8 {[%clk
0:00:47.5]} 21. Nh4 {[%clk 0:01:36.4]} 21... Rg4 {[%clk 0:00:36.6]} 22. Nf5
{[%clk 0:00:59.3]} 22... Nxf5 {[%clk 0:00:37.1]} 23. Qxf5 {[%clk 0:01:01.2]}
23... Rdg8 {[%clk 0:00:38.2]} 24. Rb2 {[%clk 0:01:02.8]} 24... a6 {[%clk
0:00:25.5]} 25. Bf1 {[%clk 0:01:01.7]} 25... exd4 {[%clk 0:00:21.5]} 26. exd4
{[%clk 0:01:02.3]} 26... Rxd4 {[%clk 0:00:22.7]} 27. Qxh7 {[%clk 0:01:00.8]}
27... Qf8 {[%clk 0:00:16.2]} 28. Rbe2 {[%clk 0:00:58.2]} 28... Rd2 {[%clk
0:00:14.9]} 29. Re7 {[%clk 0:00:50.4]} 29... d4 {[%clk 0:00:11.1]} 30. Rxb7+
{[%clk 0:00:49.7]} 1-0

[Event "*** Titled Tuesday 3|2 Blitz"]
[Site "Chess.com"]
[Date "2014.12.30"]
[Round "8"]
[White "zmaj23"]
[Black "AUSSIE_PINOY"]
[Result "0-1"]
[WhiteElo "2099"]
[BlackElo "2265"]
[TimeControl "180+2"]
[EndTime "12:44:03 PST"]
[Termination "AUSSIE_PINOY won by resignation"]

1. e4 {[%clk 0:03:00]} 1... c5 {[%clk 0:02:58]} 2. Nf3 {[%clk 0:02:59.3]} 2...
a6 {[%clk 0:02:59]} 3. c4 {[%clk 0:02:59.3]} 3... e6 {[%clk 0:02:58.9]} 4. Nc3
{[%clk 0:03:00.8]} 4... Qc7 {[%clk 0:03:00.2]} 5. d4 {[%clk 0:03:02.3]} 5...
cxd4 {[%clk 0:03:01.3]} 6. Nxd4 {[%clk 0:03:04.2]} 6... b6 {[%clk 0:03:02.5]} 7.
Be3 {[%clk 0:03:04.6]} 7... Bb7 {[%clk 0:03:03.7]} 8. Bd3 {[%clk 0:03:05.5]}
8... Nf6 {[%clk 0:03:04.6]} 9. O-O {[%clk 0:03:05.8]} 9... h5 {[%clk 0:03:04.7]}
10. f4 {[%clk 0:03:07]} 10... Ng4 {[%clk 0:03:03.8]} 11. Nc2 {[%clk 0:03:04.1]}
11... g5 {[%clk 0:03:02.4]} 12. Qf3 {[%clk 0:02:58.3]} 12... Nxe3 {[%clk
0:03:00.3]} 13. Nxe3 {[%clk 0:03:00.2]} 13... gxf4 {[%clk 0:03:01.3]} 14. Qxf4
{[%clk 0:03:02.1]} 14... Qxf4 {[%clk 0:02:58.1]} 15. Rxf4 {[%clk 0:03:04]} 15...
Bc5 {[%clk 0:02:48]} 16. Re1 {[%clk 0:03:03.4]} 16... Nc6 {[%clk 0:02:45.9]} 17.
Kf1 {[%clk 0:02:51.3]} 17... Ne5 {[%clk 0:02:45.3]} 18. Ke2 {[%clk 0:02:43.1]}
18... Bc6 {[%clk 0:02:39.9]} 19. Nc2 {[%clk 0:02:32.6]} 19... Be7 {[%clk
0:02:30.7]} 20. Nd4 {[%clk 0:02:26.3]} 20... Bg5 {[%clk 0:02:21.5]} 21. Rff1
{[%clk 0:02:24.5]} 21... Ke7 {[%clk 0:01:42.1]} 22. b3 {[%clk 0:02:20.6]} 22...
Rag8 {[%clk 0:01:41.3]} 23. Bc2 {[%clk 0:02:20]} 23... Bb7 {[%clk 0:01:29.8]}
24. a4 {[%clk 0:02:11.3]} 24... d6 {[%clk 0:01:22]} 25. a5 {[%clk 0:02:12]}
25... bxa5 {[%clk 0:01:18.4]} 26. Ra1 {[%clk 0:02:12.4]} 26... Kd7 {[%clk
0:01:15]} 27. Rxa5 {[%clk 0:02:13]} 27... Bd8 {[%clk 0:01:15.5]} 28. Raa1 {[%clk
0:02:12]} 28... Rxg2+ {[%clk 0:01:15.3]} 29. Rf2 {[%clk 0:02:12.8]} 29... Rhg8
{[%clk 0:01:15.1]} 30. Na4 {[%clk 0:02:00.5]} 30... h4 {[%clk 0:01:06.3]} 31. c5
{[%clk 0:02:00.9]} 31... h3 {[%clk 0:00:57.9]} 32. cxd6 {[%clk 0:01:59.1]} 32...
Kxd6 {[%clk 0:00:59]} 33. Rd1 {[%clk 0:01:57.7]} 33... Ke7 {[%clk 0:01:00.2]}
34. Nc5 {[%clk 0:01:55.8]} 34... Bc8 {[%clk 0:01:01.2]} 35. Rf1 {[%clk 0:01:22]}
35... Bb6 {[%clk 0:01:00.3]} 36. b4 {[%clk 0:01:23.6]} 36... a5 {[%clk
0:01:01.3]} 37. Ndb3 {[%clk 0:01:14.1]} 37... axb4 {[%clk 0:00:55.4]} 38. Ke3
{[%clk 0:01:08.1]} 38... Rxf2 {[%clk 0:00:52.4]} 39. Rxf2 {[%clk 0:01:10]} 39...
Nd7 {[%clk 0:00:52]} 40. Kd4 {[%clk 0:01:10.8]} 40... Rg5 {[%clk 0:00:47.4]} 41.
Kc4 {[%clk 0:01:01.9]} 41... Nxc5 {[%clk 0:00:43.2]} 42. Rf3 {[%clk 0:00:59.8]}
42... Nxb3 {[%clk 0:00:30.1]} 43. Bxb3 {[%clk 0:01:01.7]} 43... Bc5 {[%clk
0:00:31.2]} 0-1

[Event "*** Titled Tuesday 3|2 Blitz"]
[Site "Chess.com"]
[Date "2014.12.30"]
[Round "8"]
[White "ChessWarrior7197"]
[Black "GedoGluperd"]
[Result "1-0"]
[WhiteElo "2020"]
[BlackElo "2283"]
[TimeControl "180+2"]
[EndTime "12:45:12 PST"]
[Termination "ChessWarrior7197 won by resignation"]

1. Nf3 {[%clk 0:03:00]} 1... g6 {[%clk 0:02:57.8]} 2. g3 {[%clk 0:03:01.2]} 2...
Bg7 {[%clk 0:02:59]} 3. Bg2 {[%clk 0:03:02.5]} 3... d6 {[%clk 0:03:00.4]} 4. O-O
{[%clk 0:03:03.8]} 4... Nf6 {[%clk 0:03:01.1]} 5. d4 {[%clk 0:03:05]} 5... O-O
{[%clk 0:03:02.1]} 6. a4 {[%clk 0:03:06.1]} 6... a5 {[%clk 0:03:01.1]} 7. Nc3
{[%clk 0:03:05.9]} 7... c6 {[%clk 0:03:00.9]} 8. e4 {[%clk 0:03:06.4]} 8... Bg4
{[%clk 0:03:00]} 9. h3 {[%clk 0:03:07.1]} 9... Bxf3 {[%clk 0:03:00.5]} 10. Qxf3
{[%clk 0:03:08.2]} 10... Nfd7 {[%clk 0:02:59.8]} 11. Be3 {[%clk 0:03:08.1]}
11... Na6 {[%clk 0:03:00.6]} 12. Qe2 {[%clk 0:03:08.1]} 12... Nb4 {[%clk
0:03:00.9]} 13. Rfd1 {[%clk 0:03:08.3]} 13... Qc7 {[%clk 0:02:54]} 14. Kh2
{[%clk 0:03:08.6]} 14... e5 {[%clk 0:02:40]} 15. dxe5 {[%clk 0:03:07.6]} 15...
dxe5 {[%clk 0:02:39.8]} 16. Na2 {[%clk 0:03:00.9]} 16... Nxa2 {[%clk 0:02:34.4]}
17. Rxa2 {[%clk 0:03:01.6]} 17... Rfd8 {[%clk 0:02:35.7]} 18. Ra3 {[%clk
0:03:01.2]} 18... Nf8 {[%clk 0:02:33.5]} 19. Rad3 {[%clk 0:03:01.1]} 19... Ne6
{[%clk 0:02:34.4]} 20. c3 {[%clk 0:03:01.8]} 20... Bf8 {[%clk 0:02:27.8]} 21.
Qc2 {[%clk 0:02:56.6]} 21... Bc5 {[%clk 0:02:27.5]} 22. Bh6 {[%clk 0:02:50.5]}
22... Qb6 {[%clk 0:02:22.4]} 23. f4 {[%clk 0:02:33.6]} 23... exf4 {[%clk
0:02:19.2]} 24. gxf4 {[%clk 0:02:34.7]} 24... Qc7 {[%clk 0:02:11.7]} 25. e5
{[%clk 0:02:35.4]} 25... Rxd3 {[%clk 0:02:05.2]} 26. Rxd3 {[%clk 0:02:31.7]}
26... Rd8 {[%clk 0:02:06]} 27. Kh1 {[%clk 0:02:29.9]} 27... Ba7 {[%clk
0:01:56.6]} 28. Qe2 {[%clk 0:02:01.2]} 28... Nc5 {[%clk 0:01:55.7]} 29. Rxd8+
{[%clk 0:02:01.5]} 29... Qxd8 {[%clk 0:01:54.8]} 30. f5 {[%clk 0:02:02.3]} 30...
Nd3 {[%clk 0:01:41.6]} 31. Be3 {[%clk 0:01:34.6]} 31... Bb8 {[%clk 0:01:28.5]}
32. e6 {[%clk 0:01:30.8]} 32... Qd6 {[%clk 0:01:20.6]} 33. exf7+ {[%clk
0:01:27.5]} 33... Kxf7 {[%clk 0:01:20.9]} 34. fxg6+ {[%clk 0:01:28.2]} 34...
hxg6 {[%clk 0:01:20.9]} 35. Be4 {[%clk 0:01:27.1]} 35... Nf4 {[%clk 0:01:09.1]}
36. Qf3 {[%clk 0:01:22.4]} 36... Qf6 {[%clk 0:01:10]} 37. Bd4 {[%clk 0:01:18]}
37... Qh4 {[%clk 0:01:06.1]} 38. Bf2 {[%clk 0:01:08.3]} 38... Qxh3+ {[%clk
0:01:03]} 39. Qxh3 {[%clk 0:01:09.5]} 39... Nxh3 {[%clk 0:01:04.2]} 40. Bb6
{[%clk 0:01:10.7]} 40... Bd6 {[%clk 0:00:52]} 41. Kg2 {[%clk 0:01:08.3]} 41...
Nf4+ {[%clk 0:00:52]} 42. Kf3 {[%clk 0:01:09.3]} 42... Nd5 {[%clk 0:00:53.3]}
43. Bxa5 {[%clk 0:01:01.4]} 43... b6 {[%clk 0:00:50]} 44. Bxd5+ {[%clk
0:01:01.7]} 44... cxd5 {[%clk 0:00:49.4]} 45. Bxb6 {[%clk 0:01:02.7]} 45... Ke6
{[%clk 0:00:50.8]} 46. a5 {[%clk 0:01:01.6]} 46... Kd7 {[%clk 0:00:51.6]} 47. a6
{[%clk 0:00:59.4]} 47... Kc6 {[%clk 0:00:52.1]} 48. a7 {[%clk 0:01:00.8]} 48...
Kb7 {[%clk 0:00:53.1]} 49. Bd4 {[%clk 0:01:01.7]} 49... Bh2 {[%clk 0:00:42.8]}
50. Kg4 {[%clk 0:01:02.4]} 50... Bd6 {[%clk 0:00:17.1]} 51. Kg5 {[%clk
0:01:01.9]} 51... Bg3 {[%clk 0:00:13.8]} 52. Kxg6 {[%clk 0:01:02.9]} 52... Bf4
{[%clk 0:00:15.5]} 53. Kf5 {[%clk 0:01:03.9]} 53... Bc1 {[%clk 0:00:17.1]} 54.
b3 {[%clk 0:01:04.9]} 54... Bb2 {[%clk 0:00:16.8]} 55. Ke6 {[%clk 0:01:06]}
55... Bxc3 {[%clk 0:00:18.3]} 56. Bxc3 {[%clk 0:01:06.9]} 56... Kxa7 {[%clk
0:00:20]} 57. Kxd5 {[%clk 0:01:08.1]} 1-0

[Event "*** Titled Tuesday 3|2 Blitz"]
[Site "Chess.com"]
[Date "2014.12.30"]
[Round "8"]
[White "AlmirDzhumaev"]
[Black "David_Klein"]
[Result "1-0"]
[WhiteElo "2097"]
[BlackElo "2340"]
[TimeControl "180+2"]
[EndTime "12:45:17 PST"]
[Termination "AlmirDzhumaev won by checkmate"]

1. e4 {[%clk 0:03:00]} 1... g6 {[%clk 0:02:53.9]} 2. Nc3 {[%clk 0:02:59.7]} 2...
Bg7 {[%clk 0:02:55.2]} 3. d3 {[%clk 0:03:01.3]} 3... a6 {[%clk 0:02:54.1]} 4. g3
{[%clk 0:03:02.8]} 4... b5 {[%clk 0:02:55.2]} 5. Bg2 {[%clk 0:03:02.5]} 5... Bb7
{[%clk 0:02:56.8]} 6. Be3 {[%clk 0:03:03.3]} 6... e6 {[%clk 0:02:58]} 7. Qd2
{[%clk 0:03:04.5]} 7... h5 {[%clk 0:02:58.4]} 8. h3 {[%clk 0:03:05.2]} 8... Ne7
{[%clk 0:02:59.4]} 9. f4 {[%clk 0:03:04.1]} 9... d6 {[%clk 0:03:00.6]} 10. Nf3
{[%clk 0:03:04.9]} 10... Nd7 {[%clk 0:03:01.3]} 11. O-O {[%clk 0:03:06]} 11...
b4 {[%clk 0:03:00.1]} 12. Nd1 {[%clk 0:03:06.6]} 12... a5 {[%clk 0:03:00.1]} 13.
c3 {[%clk 0:03:07.9]} 13... c5 {[%clk 0:02:59.4]} 14. Rb1 {[%clk 0:03:08.8]}
14... Qc7 {[%clk 0:02:58.3]} 15. Re1 {[%clk 0:03:09.9]} 15... c4 {[%clk
0:02:50]} 16. Nd4 {[%clk 0:03:02.1]} 16... O-O {[%clk 0:02:37.1]} 17. dxc4
{[%clk 0:03:00.9]} 17... Qxc4 {[%clk 0:02:33.5]} 18. b3 {[%clk 0:02:52]} 18...
bxc3 {[%clk 0:02:30.1]} 19. Qxc3 {[%clk 0:02:51.9]} 19... Qxc3 {[%clk
0:02:30.6]} 20. Nxc3 {[%clk 0:02:53.2]} 20... Nc5 {[%clk 0:02:21.3]} 21. Ndb5
{[%clk 0:02:50.3]} 21... Rfd8 {[%clk 0:02:16.2]} 22. Red1 {[%clk 0:02:30.4]}
22... Ba6 {[%clk 0:01:29.5]} 23. Rxd6 {[%clk 0:02:23.4]} 23... Rxd6 {[%clk
0:01:27.9]} 24. Nxd6 {[%clk 0:02:24.3]} 24... Nd3 {[%clk 0:01:21.4]} 25. e5
{[%clk 0:02:24.2]} 25... Rb8 {[%clk 0:01:19.2]} 26. Ba7 {[%clk 0:02:19.6]} 26...
Rb4 {[%clk 0:01:16.7]} 27. a3 {[%clk 0:02:11.8]} 27... Rxf4 {[%clk 0:01:01.2]}
28. gxf4 {[%clk 0:02:08.7]} 28... Nxf4 {[%clk 0:01:03.1]} 29. Bd4 {[%clk
0:01:54.8]} 29... Nxg2 {[%clk 0:01:03.1]} 30. Kxg2 {[%clk 0:01:55.4]} 30... Nc6
{[%clk 0:01:04.8]} 31. Ncb5 {[%clk 0:01:39.3]} 31... Nxd4 {[%clk 0:01:04]} 32.
Nxd4 {[%clk 0:01:40.1]} 32... Bxe5 {[%clk 0:01:05.3]} 33. N4b5 {[%clk
0:01:40.1]} 33... Kf8 {[%clk 0:00:59.6]} 34. Rc1 {[%clk 0:01:37.9]} 34... g5
{[%clk 0:00:36.4]} 35. Rc6 {[%clk 0:01:38.2]} 35... Bxd6 {[%clk 0:00:36.7]} 36.
Nxd6 {[%clk 0:01:37.8]} 36... Bd3 {[%clk 0:00:36.7]} 37. Rc7 {[%clk 0:01:38.9]}
37... Bg6 {[%clk 0:00:35.1]} 38. b4 {[%clk 0:01:39.1]} 38... axb4 {[%clk
0:00:35.8]} 39. axb4 {[%clk 0:01:40.2]} 39... Kg7 {[%clk 0:00:37.7]} 40. b5
{[%clk 0:01:41.5]} 40... Kf6 {[%clk 0:00:38.8]} 41. b6 {[%clk 0:01:41.6]} 41...
Ke5 {[%clk 0:00:40.4]} 42. Nxf7+ {[%clk 0:01:39]} 42... Kf6 {[%clk 0:00:39.8]}
43. b7 {[%clk 0:01:38.8]} 43... Be4+ {[%clk 0:00:40.7]} 44. Kg3 {[%clk
0:01:40.2]} 44... Bxb7 {[%clk 0:00:42.3]} 45. Rxb7 {[%clk 0:01:41.4]} 45... e5
{[%clk 0:00:42.2]} 46. Nd6 {[%clk 0:01:41.4]} 46... Ke6 {[%clk 0:00:42]} 47. Ne4
{[%clk 0:01:42.5]} 47... Kf5 {[%clk 0:00:43.5]} 48. Kf3 {[%clk 0:01:43]} 48...
g4+ {[%clk 0:00:44.5]} 49. hxg4+ {[%clk 0:01:44.4]} 49... hxg4+ {[%clk
0:00:46.4]} 50. Ke3 {[%clk 0:01:46.3]} 50... g3 {[%clk 0:00:46.8]} 51. Nxg3+
{[%clk 0:01:47]} 51... Kg4 {[%clk 0:00:47.9]} 52. Ne4 {[%clk 0:01:47.9]} 52...
Kf5 {[%clk 0:00:42.6]} 53. Rb6 {[%clk 0:01:47]} 53... Kg4 {[%clk 0:00:43.5]} 54.
Rf6 {[%clk 0:00:20]} 54... Kh5 {[%clk 0:00:42.4]} 55. Rf5+ {[%clk 0:00:21.3]}
55... Kg4 {[%clk 0:00:42.1]} 56. Rxe5 {[%clk 0:00:22.8]} 56... Kh4 {[%clk
0:00:43.8]} 57. Kf3 {[%clk 0:00:23.1]} 57... Kh3 {[%clk 0:00:44.7]} 58. Rh5#
{[%clk 0:00:24.3]} 1-0